bitfinex-derivatives/quotes_SOLF0:USTF0_20250523
["timestamp","ask_amount","ask_price","bid_price","bid_amount"]
[1748015295494,0.03536659,182.5,182.46,109.6611461]
[1748015295694,0.03536659,182.5,182.46,104.1822461]
[1748015298099,0.03536659,182.5,182.46,0.0422461]
[1748015298493,5.4782,182.49,182.46,0.0422461]
[1748015298798,0.03536659,182.5,182.46,0.0422461]
[1748015299200,5.4787,182.47,182.46,0.0422461]
[1748015299399,0.03536659,182.5,182.46,0.0422461]
[1748015299700,5.4783,182.49,182.46,0.0422461]
[1748015300295,5.51326659,182.5,182.47,5.4785]
[1748015300596,0.03536659,182.5,182.46,0.0422461]
[1748015301305,0.03536659,182.5,182.49,5.4781]
[1748015301898,0.03536659,182.5,182.48,5.4783]
[1748015302106,0.03536659,182.5,182.46,0.0422461]
[1748015302301,5.51336659,182.5,182.46,5.5210461]
[1748015302494,0.03536659,182.5,182.46,0.0422461]
[1748015302906,0.03536659,182.5,182.47,5.4785]
[1748015303199,0.03536659,182.5,182.46,0.0422461]
[1748015304108,0.03536659,182.5,182.47,5.4786]
[1748015304302,0.03536659,182.5,182.46,0.0422461]
[1748015305405,0.03536659,182.5,182.49,5.4781]
[1748015305609,0.03536659,182.5,182.46,0.0422461]
[1748015305803,0.03536659,182.5,182.48,5.4782]
[1748015306807,0.03536659,182.5,182.49,5.4781]
[1748015307010,0.03536659,182.5,182.46,0.0422461]
[1748015307506,5.51326659,182.5,182.46,5.5209461]
[1748015307806,5.51326659,182.5,182.46,0.0422461]
[1748015308018,0.03536659,182.5,182.47,5.4785]
[1748015308303,0.03536659,182.5,182.46,0.0422461]
[1748015308493,6.659e-05,182.5,182.47,5.4785]
[1748015308703,124.08006659,182.5,182.34,105.9851]
[1748015308908,3.7471,182.49,182.35,109.19932966]
[1748015309105,5.4808,182.41,182.36,5.4818]
[1748015309308,118.6,182.44,182.35,109.19932966]
[1748015309514,118.6,182.44,182.35,5.07932966]
[1748015309709,13.87688095,182.41,182.32,6.63169259]
[1748015310007,1.873,182.4,182.32,3.63349259]
[1748015310207,5.4835,182.31,182.3,9.96214201]
[1748015310512,118.58,182.37,182.24,118.58]
[1748015310714,0.03981512,182.32,182.29,0.03688078]
[1748015310906,0.03801617,182.32,182.29,0.03841103]
[1748015311106,5.52121617,182.32,182.29,0.03841103]
[1748015311307,0.03801617,182.32,182.29,0.03841103]
[1748015311811,5.4835,182.31,182.29,0.03841103]
[1748015312513,5.4838,182.3,182.29,0.03841103]
[1748015315821,5.4853,182.25,182.24,104.14]
[1748015316117,118.64,182.28,182.21,104.16]
[1748015316315,5.4862,182.22,182.21,104.16]
[1748015316818,5.4851,182.26,182.21,104.16]
[1748015317123,0.03643318,182.23,182.21,104.16]
[1748015317817,0.03643318,182.23,182.2,0.037321]
[1748015318118,0.03643318,182.23,182.22,5.4862]
[1748015318321,0.03643318,182.23,182.21,104.16]
[1748015318822,0.03643318,182.23,182.22,5.4862]
[1748015319327,0.03643318,182.23,182.21,109.6465]
[1748015319524,0.03643318,182.23,182.21,104.16]
[1748015321219,5.52243318,182.23,182.21,104.16]
[1748015322225,0.03643318,182.23,182.21,104.16]
[1748015323325,0.03643318,182.23,182.2,0.037321]
[1748015323630,5.4865,182.21,182.2,0.037321]
[1748015323824,118.73643318,182.23,182.2,0.037321]
[1748015324024,5.4865,182.22,182.2,0.037321]
[1748015324324,118.73643318,182.23,182.2,0.037321]
[1748015324532,0.03643318,182.23,182.2,0.037321]
[1748015325228,5.4865,182.21,182.2,0.037321]
[1748015326024,118.72,182.22,182.12,118.7]
[1748015326232,1.8043,182.2,182.12,118.7]
[1748015326421,1.8043,182.2,182.1,104.22]
[1748015326929,0.03872073,182.17,182.13,0.03656158]
[1748015327226,0.03872073,182.17,182.14,5.4886]
[1748015327419,0.03872073,182.17,182.13,0.03656158]
[1748015327829,0.03872073,182.17,182.14,5.4884]
[1748015328032,0.03872073,182.17,182.13,0.03656158]
[1748015328225,118.74,182.16,181.95,118.74]
[1748015328419,13.89394453,182.12,181.96,5.6506]
[1748015328732,13.89394453,182.08,181.96,3.7561]
[1748015328935,5.4923,182.02,181.94,5.4946]
[1748015329228,0.04037201,182.0,181.96,0.03792236]
[1748015330024,0.04037201,182.0,181.97,5.4935]
[1748015330225,0.04037201,182.0,181.96,0.03792236]
[1748015330424,0.04037201,182.0,181.99,5.4932]
[1748015330625,1.8746,182.11,181.96,120.21792236]
[1748015330820,120.18,182.1,181.96,120.18]
[1748015331022,1.8746,182.11,181.97,1.947]
[1748015331224,1.8746,182.11,181.98,1.961]
[1748015331527,1.8746,182.11,181.98,3.8342]
[1748015331730,0.03462934,182.06,182.03,0.03770976]
[1748015332125,0.03462934,182.06,182.05,5.4914]
[1748015334934,0.03462934,182.06,182.03,0.03770976]
[1748015335435,5.4914,182.05,182.03,0.03770976]
[1748015336029,5.4917,182.04,182.03,0.03770976]
[1748015336634,0.03462934,182.06,182.03,0.03770976]
[1748015337435,0.03462934,182.06,182.03,5.52950976]
[1748015337734,0.03462934,182.06,182.03,0.03770976]
[1748015339139,0.03462934,182.06,182.04,5.4917]
[1748015339638,0.03462934,182.06,182.05,5.4914]
[1748015340238,0.03462934,182.06,182.04,5.4916]
[1748015340430,0.03462934,182.06,182.03,0.03770976]
[1748015341540,0.03462934,182.06,182.03,5.52960976]
[1748015341941,0.03462934,182.06,182.03,0.03770976]
[1748015342141,0.03462934,182.06,182.04,5.4914]
[1748015342337,0.03462934,182.06,182.03,0.03770976]
[1748015342735,0.03462934,182.06,182.05,5.4914]
[1748015343046,120.22,182.11,182.03,120.27770976]
[1748015343936,186.24,182.15,182.03,120.27770976]
[1748015344142,0.0353367,182.11,182.07,0.03928194]
[1748015344341,0.0353367,182.11,182.1,5.4898]
[1748015344645,120.24,182.15,182.08,122.2418]
[1748015344844,125.7284,182.15,182.11,5.4894]
[1748015345047,120.24,182.15,182.08,122.2418]
[1748015345445,0.04205709,182.13,182.1,0.03767305]
[1748015346344,5.53105709,182.13,182.1,0.03767305]
[1748015346744,0.04205709,182.13,182.1,0.03767305]
[1748015347951,5.53105709,182.13,182.1,0.03767305]
[1748015348451,0.04205709,182.13,182.1,5.52747305]
[1748015348746,0.04205709,182.13,182.1,0.03767305]
[1748015348948,0.04205709,182.13,182.11,5.4893]
[1748015349151,0.04205709,182.13,182.1,0.03767305]
[1748015349447,0.04205709,182.13,182.1,5.52747305]
[1748015350045,0.04205709,182.13,182.1,0.03767305]
[1748015352544,0.04205709,182.13,182.11,5.4895]
[1748015352852,0.04205709,182.13,182.1,0.03767305]
[1748015353857,5.4913,182.06,182.02,228.3776]
[1748015354051,5.4913,182.06,182.02,232.0114]
[1748015354252,120.22,182.1,182.02,226.5192]
[1748015354445,5.4906,182.08,182.02,226.5192]
[1748015354649,120.22,182.1,182.02,226.5192]
[1748015354854,0.04069178,182.08,182.04,0.03858547]
[1748015355153,120.22,182.15,182.08,5.4902]
[1748015355457,0.03947698,182.13,182.1,0.03806037]
[1748015356853,5.4893,182.12,182.1,0.03806037]
[1748015358951,5.4895,182.11,182.1,0.03806037]
[1748015363561,5.4895,182.11,182.1,6.037e-05]
[1748015366255,5.5,182.11,181.94,118.82]
[1748015366463,13.89394453,182.08,181.94,118.82]
[1748015366661,67.8819,182.07,181.93,106.1344]
[1748015366959,76.9822,182.06,181.89,122.6698]
[1748015367161,0.03795649,181.99,181.96,0.04096575]
[1748015367457,0.03725993,181.99,181.96,0.04096575]
[1748015367657,0.03725993,181.99,181.98,5.4934]
[1748015367855,5.4922,182.03,181.96,0.04096575]
[1748015368049,120.7019,182.07,181.95,104.34]
[1748015368255,5.07617399,182.03,181.95,104.34]
[1748015368764,0.03836536,182.01,182.0,5.4926]
[1748015369661,5.07617399,182.03,182.01,5.4925]
[1748015370263,5.07617399,182.03,182.0,5.4928]
[1748015370663,5.1158057,182.03,182.0,5.4928]
[1748015370869,118.84,182.02,181.97,0.03719859]
[1748015371155,0.03963171,182.03,181.97,0.03719859]
[1748015371460,0.03963171,182.03,181.98,5.4934]
[1748015371662,0.03963171,182.03,181.97,0.03719859]
[1748015371860,5.493,182.0,181.97,0.03719859]
[1748015372063,0.03963171,182.03,181.97,0.03719859]
[1748015372459,5.4935,181.98,181.97,0.03719859]
[1748015372960,0.03889856,181.99,181.9,1.8153]
[1748015373665,5.4955,181.92,181.9,1.8153]
[1748015373871,0.03681487,181.93,181.9,1.8153]
[1748015374168,5.4955,181.92,181.9,1.85027602]
[1748015374566,0.03869359,181.93,181.9,1.85027602]
[1748015374756,0.03869359,181.93,181.9,7.34587602]
[1748015375362,0.03869359,181.93,181.9,1.85027602]
[1748015375568,5.07617399,182.0,181.9,1.85027602]
[1748015376464,5.07617399,182.0,181.9,106.23027602]
[1748015376669,0.03983392,181.97,181.9,106.23027602]
[1748015376967,5.4946,181.95,181.91,5.4955]
[1748015377663,0.03983392,181.97,181.91,5.4955]
[1748015377869,118.91983392,181.97,181.91,104.38]
[1748015378672,5.4955,181.92,181.91,104.38]
[1748015379764,5.4956,181.91,181.9,0.03497602]
[1748015379965,0.03706244,181.93,181.9,0.03497602]
[1748015380369,5.4953,181.92,181.9,0.03497602]
[1748015380770,0.03706244,181.93,181.9,0.03497602]
[1748015383171,0.03706244,181.93,181.9,5.53077602]
[1748015383675,0.03706244,181.93,181.9,0.03497602]
[1748015384971,5.53206244,181.93,181.9,0.03497602]
[1748015385378,0.03706244,181.93,181.91,5.4955]
[1748015385572,0.03706244,181.93,181.9,0.03497602]
[1748015386476,5.53236244,181.93,181.9,0.03497602]
[1748015387074,5.4954,181.92,181.9,0.03497602]
[1748015387480,0.03706244,181.93,181.9,0.03497602]
[1748015387683,5.4956,181.91,181.9,0.03497602]
[1748015388879,5.4954,181.92,181.9,0.03497602]
[1748015389072,0.03706244,181.93,181.9,0.03497602]
[1748015389469,5.4956,181.91,181.9,0.03497602]
[1748015393277,124.4154,181.92,181.9,0.03497602]
[1748015393680,5.4954,181.92,181.9,0.03497602]
[1748015394183,5.4956,181.91,181.9,0.03497602]
[1748015394383,0.03706244,181.93,181.9,0.03497602]
[1748015394683,5.4955,181.92,181.9,0.03497602]
[1748015395384,5.4956,181.91,181.9,0.03497602]
[1748015399480,0.03706244,181.93,181.9,0.03497602]
[1748015399880,13.93100697,181.93,181.83,1.8768]
[1748015400984,13.93100697,181.93,181.86,0.03850461]
[1748015401187,5.4968,181.87,181.86,0.03850461]
[1748015401588,0.04032139,181.88,181.86,0.03850461]
[1748015401589,5.53682139,181.88,181.86,0.03850461]
[1748015401794,118.92,181.94,181.86,0.03850461]
[1748015402090,118.92,181.94,181.87,5.4966]
[1748015402296,118.92,181.94,181.86,0.03850461]
[1748015402893,0.03891586,181.92,181.86,0.03850461]
[1748015403093,123.99617399,181.97,181.87,0.04098209]
[1748015403290,5.4951,181.93,181.87,0.04098209]
[1748015403494,123.99617399,181.97,181.87,0.04098209]
[1748015403691,123.99617399,181.97,181.9,5.4959]
[1748015403898,5.4951,181.93,181.89,104.46]
[1748015404100,5.53068357,181.93,181.89,104.49970551]
[1748015404296,0.03558357,181.93,181.89,104.49970551]
[1748015404593,5.53058357,181.93,181.89,104.49970551]
[1748015404804,0.03558357,181.93,181.89,104.49970551]
[1748015404991,118.92,181.97,181.89,104.49970551]
[1748015405192,5.07617399,181.99,181.95,5.4941]
[1748015405501,5.4935,181.98,181.9,120.8408]
[1748015405797,5.4935,181.98,181.94,5.4944]
[1748015405998,5.4935,181.98,181.94,0.03612698]
[1748015406193,5.53331585,181.98,181.95,5.4943]
[1748015406397,5.53331585,181.98,181.94,0.03612698]
[1748015406903,0.03981585,181.98,181.94,0.03612698]
[1748015407308,5.4944,181.95,181.94,0.03612698]
[1748015407602,0.03981585,181.98,181.94,0.03612698]
[1748015407804,5.07617399,182.03,181.94,0.03612698]
[1748015407995,5.07617399,182.03,181.94,1.88912698]
[1748015408300,5.493,182.0,181.97,5.4936]
[1748015408502,5.07617399,182.03,181.95,118.9]
[1748015408700,0.03984722,182.01,181.97,0.04137868]
[1748015408901,5.4935,181.98,181.97,0.04137868]
[1748015410801,0.03984722,182.01,181.97,0.04137868]
[1748015411200,5.53244722,182.01,181.97,5.53507868]
[1748015411396,5.07617399,182.03,181.97,0.04137868]
[1748015411597,5.07617399,182.03,181.98,1.9722]
[1748015411897,2.07267399,182.03,181.98,3.9044]
[1748015412501,2.07267399,182.03,182.01,5.4925]
[1748015412704,2.07267399,182.03,182.01,228.7925]
[1748015413095,2.07267399,182.03,182.01,223.3]
[1748015413397,118.88,182.08,182.01,223.3]
[1748015413595,5.4916,182.04,182.03,0.03861337]
[1748015423512,125.49750451,182.08,182.03,0.03861337]
[1748015424616,5.4916,182.04,182.03,0.03861337]
[1748015425920,5.4929,182.0,181.97,118.86]
[1748015426213,5.4929,182.0,181.96,5.494]
[1748015426214,118.76,182.03,181.93,1.9419]
[1748015426505,118.76,182.03,181.93,118.76]
[1748015426908,0.0420689,182.0,181.93,118.76]
[1748015427108,0.0420689,182.0,181.96,0.04076676]
[1748015427507,5.4938,181.97,181.96,0.04076676]
[1748015428018,0.0420689,182.0,181.96,0.04076676]
[1748015428616,0.0420689,182.0,181.97,5.4935]
[1748015428821,0.0420689,182.0,181.96,0.04076676]
[1748015429221,5.5351689,182.0,181.97,5.4937]
[1748015430419,5.5351689,182.0,181.96,5.53476676]
[1748015430722,0.0420689,182.0,181.96,0.04076676]
[1748015431612,5.5349689,182.0,181.97,5.4937]
[1748015432318,5.4932,181.99,181.96,5.53476676]
[1748015432917,5.4935,181.98,181.96,5.53476676]
[1748015433117,5.4935,181.98,181.96,0.04076676]
[1748015433417,5.4938,181.97,181.96,0.04076676]
[1748015439922,5.4938,181.97,181.96,6.676e-05]
[1748015440121,5.4967,181.88,181.86,1.8976]
[1748015440321,118.78,181.97,181.86,1.8976]
[1748015440621,10.9882,181.96,181.83,118.78]
[1748015440821,1.8251,181.95,181.83,118.78]
[1748015441022,3.7812,181.95,181.83,118.78]
[1748015441222,5.4965,181.88,181.87,0.03736341]
[1748015442923,5.4965,181.88,181.87,6.341e-05]
[1748015443222,13.89394453,181.9,181.75,104.42]
[1748015443422,118.78,181.89,181.75,118.78]
[1748015444116,5.4986,181.81,181.8,0.04045958]
[1748015444830,5.4984,181.82,181.8,0.04045958]
[1748015445030,118.78,181.83,181.8,0.04045958]
[1748015445229,0.04214109,181.84,181.8,0.04045958]
[1748015445528,5.4986,181.81,181.8,0.04045958]
[1748015445716,0.04214109,181.84,181.8,0.04045958]
[1748015445922,5.4983,181.82,181.8,0.04045958]
[1748015446213,0.04214109,181.84,181.8,0.04045958]
[1748015447015,5.4986,181.81,181.8,0.04045958]
[1748015447923,5.4986,181.81,181.8,5.958e-05]
[1748015448830,13.89394453,181.82,181.71,118.84]
[1748015449833,5.5001,181.76,181.75,0.0384685]
[1748015450230,0.03701924,181.78,181.75,0.0384685]
[1748015450830,5.53671924,181.78,181.75,0.0384685]
[1748015451028,0.03701924,181.78,181.75,0.0384685]
[1748015451440,5.5,181.77,181.75,0.0384685]
[1748015451825,0.03701924,181.78,181.75,0.0384685]
[1748015453339,0.03701924,181.78,181.76,5.4998]
[1748015454333,0.03701924,181.78,181.77,5.4998]
[1748015455727,118.76,181.86,181.8,5.4986]
[1748015455928,5.4979,181.84,181.8,5.4986]
[1748015456128,118.76,181.86,181.77,1.8907]
[1748015456324,118.76,181.86,181.78,5.4992]
[1748015456731,0.0372147,181.84,181.8,0.04217641]
[1748015457134,5.4984,181.82,181.8,0.04217641]
[1748015457627,5.4982,181.83,181.8,0.04217641]
[1748015457834,0.0372147,181.84,181.8,0.04217641]
[1748015459039,5.4986,181.81,181.8,0.04217641]
[1748015461836,5.4984,181.82,181.8,0.04217641]
[1748015462039,0.0372147,181.84,181.8,0.04217641]
[1748015463237,5.4986,181.81,181.8,0.04217641]
[1748015463435,0.0372147,181.84,181.71,1.825]
[1748015463637,118.76,181.86,181.73,223.26]
[1748015463828,5.4994,181.79,181.75,5.5001]
[1748015464031,118.76,181.86,181.75,5.5001]
[1748015464540,0.03475575,181.82,181.79,0.03821966]
[1748015464939,5.4989,181.8,181.79,0.03821966]
[1748015465742,124.2789,181.8,181.79,1.966e-05]
[1748015467240,5.4987,181.81,181.79,1.966e-05]
[1748015467542,0.03475575,181.82,181.79,1.966e-05]
[1748015469241,5.4989,181.8,181.79,1.966e-05]
[1748015471540,124.2789,181.8,181.79,1.966e-05]
[1748015472445,124.2789,181.8,181.71,1.825]
[1748015472446,118.78,181.8,181.69,118.78]
[1748015472944,5.5013,181.73,181.69,118.78]
[1748015473145,118.78,181.8,181.69,118.78]
[1748015473336,0.03656998,181.76,181.73,0.03476969]
[1748015475049,118.8,181.75,181.73,0.03476969]
[1748015475545,5.5007,181.74,181.73,0.03476969]
[1748015476347,132.69394453,181.75,181.63,3.8239]
[1748015476539,1.832,181.74,181.63,3.8239]
[1748015476736,5.5005,181.75,181.63,122.6239]
[1748015476941,118.8,181.77,181.63,122.6239]
[1748015477148,5.06309434,181.79,181.63,122.6239]
[1748015477149,5.06309434,181.79,181.73,5.5008]
[1748015477343,0.03484505,181.78,181.74,0.03507952]
[1748015477549,0.03682972,181.78,181.74,0.03724487]
[1748015478240,0.03682972,181.78,181.77,5.4998]
[1748015478447,6.61750451,181.82,181.75,118.8]
[1748015478650,6.61750451,181.82,181.79,5.4991]
[1748015478847,6.61750451,181.87,181.76,2.0015]
[1748015479236,6.61750451,181.87,181.84,5.4976]
[1748015479442,6.65502764,181.87,181.84,0.03487916]
[1748015480152,5.4974,181.86,181.84,0.03487916]
[1748015480348,6.65502764,181.87,181.84,0.03487916]
[1748015481647,4.34762716,181.9,181.85,118.8]
[1748015481848,1.34452716,181.9,181.86,1.8117]
[1748015482052,1.34452716,181.9,181.89,5.4962]
[1748015482248,118.8,182.0,181.89,5.4962]
[1748015482450,118.8,182.0,181.88,104.52]
[1748015482651,0.03570497,181.96,181.92,0.03568252]
[1748015483044,5.4949,181.94,181.92,0.03568252]
[1748015483353,0.03570497,181.96,181.92,0.03568252]
[1748015483542,5.495,181.93,181.92,0.03568252]
[1748015484753,0.03570497,181.96,181.92,0.03568252]
[1748015485748,5.52980497,181.96,181.92,0.03568252]
[1748015485947,0.03570497,181.96,181.92,0.03568252]
[1748015486152,0.03570497,181.96,181.92,5.53068252]
[1748015486354,5.52980497,181.96,181.92,0.03568252]
[1748015486741,0.03570497,181.96,181.92,0.03568252]
[1748015487145,0.03570497,181.96,181.92,118.67568252]
[1748015487349,0.03570497,181.96,181.95,5.4944]
[1748015487545,118.64,182.06,181.92,118.67568252]
[1748015487743,118.64,182.06,181.92,118.64]
[1748015488544,0.03951544,182.01,182.0,5.4929]
[1748015488750,0.036829,182.02,181.99,0.03781028]
[1748015490754,0.036829,182.02,181.99,5.53091028]
[1748015491954,0.036829,182.02,181.99,109.97091028]
[1748015492143,0.036829,182.02,181.99,104.47781028]
[1748015492555,0.036829,182.02,181.99,109.97101028]
[1748015493257,0.036829,182.02,181.99,104.47781028]
[1748015494256,0.036829,182.02,181.99,109.97081028]
[1748015494745,0.036829,182.02,181.99,104.47781028]
[1748015495144,122.3446,182.11,181.99,104.47781028]
[1748015495145,120.9170673,182.11,181.99,104.47781028]
[1748015495352,120.9170673,182.11,181.99,104.44]
[1748015495353,5.4912,182.06,181.99,104.44]
[1748015495652,120.9170673,182.11,181.99,104.44]
[1748015496050,0.03519859,182.07,182.03,0.03590489]
[1748015496452,5.4913,182.06,182.03,0.03590489]
[1748015496648,0.03519859,182.07,182.03,0.03590489]
[1748015497156,5.4911,182.06,182.03,0.03590489]
[1748015498561,5.4914,182.05,182.03,0.03590489]
[1748015498961,0.03519859,182.07,182.03,0.03590489]
[1748015500760,5.4913,182.06,182.03,0.03590489]
[1748015501258,5.4911,182.06,182.03,0.03590489]
[1748015501764,0.03519859,182.07,182.03,0.03590489]
[1748015502153,0.03519859,182.07,182.06,5.4911]
[1748015502354,3.8814,182.17,182.06,118.54]
[1748015502656,3.8814,182.17,182.07,13.89394453]
[1748015502956,1.859,182.22,182.08,104.38]
[1748015503157,1.859,182.22,182.09,13.89394453]
[1748015503458,0.03883399,182.17,182.14,0.03617212]
[1748015503653,0.03883399,182.17,182.15,118.54]
[1748015504258,5.4881,182.16,182.15,118.54]
[1748015504455,0.03883399,182.17,182.15,118.54]
[1748015504861,5.52663399,182.17,182.15,118.54]
[1748015505256,0.03883399,182.17,182.15,118.54]
[1748015506958,5.52663399,182.17,182.15,118.54]
[1748015507263,0.03883399,182.17,182.15,118.54]
[1748015507564,0.03883399,182.17,182.14,0.03617212]
[1748015508364,0.03883399,182.17,182.15,5.4881]
[1748015509463,0.03883399,182.17,182.14,5.52477212]
[1748015509763,0.03883399,182.17,182.14,0.03617212]
[1748015510266,5.52683399,182.17,182.14,0.03617212]
[1748015510464,0.03883399,182.17,182.14,0.03617212]
[1748015512867,5.4884,182.15,182.14,0.03617212]
[1748015513468,5.4887,182.14,182.13,118.46]
[1748015513667,1.9157,182.16,182.08,222.78]
[1748015513861,1.9157,182.16,182.08,104.32]
[1748015514061,118.36,182.15,182.08,104.32]
[1748015514465,118.36,182.15,182.1,0.04158205]
[1748015514669,5.4896,182.11,182.1,0.04158205]
[1748015515167,5.4902,182.09,182.08,104.32]
[1748015515571,0.03993018,182.13,182.08,104.32]
[1748015516070,0.03993018,182.13,182.05,118.46]
[1748015516270,5.4905,182.08,182.07,0.03930853]
[1748015516771,0.03837889,182.09,182.07,0.03930853]
[1748015517773,0.03837889,182.09,182.03,104.32]
[1748015518166,5.491,182.07,182.03,104.32]
[1748015518366,0.03837889,182.09,182.03,104.32]
[1748015518768,0.03837889,182.09,182.04,0.04087654]
[1748015518979,5.4905,182.08,182.04,5.53247654]
[1748015519268,0.03837889,182.09,182.04,0.04087654]
[1748015520776,5.4914,182.05,182.04,0.04087654]
[1748015521075,0.03837889,182.09,182.01,118.36]
[1748015521270,118.38,182.1,182.01,118.36]
[1748015521573,5.4916,182.05,182.01,118.36]
[1748015521779,118.38,182.1,182.01,118.36]
[1748015522077,0.04089505,182.07,182.05,5.4912]
[1748015522276,0.04089505,182.07,182.04,0.03959768]
[1748015522574,5.4881,182.17,182.12,5.4893]
[1748015522875,118.4,182.22,182.1,104.34]
[1748015523076,120.3988,182.22,182.11,222.74]
[1748015523677,0.03844139,182.18,182.15,0.04175622]
[1748015524175,5.52604139,182.18,182.15,0.04175622]
[1748015524377,0.03844139,182.18,182.15,0.04175622]
[1748015525378,5.488,182.17,182.15,0.04175622]
[1748015525575,0.03844139,182.18,182.15,0.04175622]
[1748015525873,5.485,182.27,182.16,118.38]
[1748015526079,3.8849,182.31,182.16,118.38]
[1748015526378,5.4845,182.28,182.16,118.38]
[1748015526571,5.6893,182.31,182.18,13.89394453]
[1748015526767,0.0384363,182.25,182.22,0.0410495]
[1748015527172,0.0384363,182.25,182.17,222.72]
[1748015527373,118.38,182.28,182.17,222.72]
[1748015528175,0.03729333,182.24,182.21,0.03960006]
[1748015528373,0.03729333,182.24,182.11,474.42]
[1748015528374,0.03729333,182.24,182.15,104.34]
[1748015528572,118.36,182.23,182.11,474.42]
[1748015528774,120.2755,182.22,182.04,5.11003573]
[1748015528969,120.3491,182.21,182.08,104.3]
[1748015529481,0.03692432,182.16,182.13,0.04162781]
[1748015529679,0.03692432,182.16,182.05,118.36]
[1748015529878,120.3491,182.21,182.06,104.3]
[1748015530579,5.4884,182.16,182.1,5.4897]
[1748015530779,0.03733655,182.15,182.11,0.03485896]
[1748015531480,5.52573655,182.15,182.11,0.03485896]
[1748015531675,0.03733655,182.15,182.11,0.03485896]
[1748015532180,0.03733655,182.15,182.14,5.4887]
[1748015536785,0.03733655,182.15,182.13,104.3]
[1748015537685,5.52593655,182.15,182.13,104.3]
[1748015537879,5.52593655,182.15,182.11,5.52435896]
[1748015538181,0.03733655,182.15,182.11,0.03485896]
[1748015538375,5.4893,182.12,182.11,0.03485896]
[1748015538583,1.977,182.14,182.11,0.03485896]
[1748015538880,7.4659,182.14,182.11,0.03485896]
[1748015539179,0.03733655,182.15,182.11,0.03485896]
[1748015539484,0.03733655,182.15,182.11,118.37485896]
[1748015539676,0.03733655,182.15,182.14,5.4887]
[1748015539877,0.03733655,182.15,182.14,109.7887]
[1748015540876,0.03733655,182.15,182.14,104.3]
[1748015541486,0.03733655,182.15,182.14,109.7887]
[1748015543085,0.03733655,182.15,182.14,104.3]
[1748015544188,0.03733655,182.15,182.11,0.03485896]
[1748015545491,5.4893,182.12,182.11,0.03485896]
[1748015545789,0.03733655,182.15,182.11,0.03485896]
[1748015545986,0.03733655,182.15,182.06,5.4911]
[1748015545987,5.4899,182.1,182.06,5.4911]
[1748015546191,1.9628,182.14,182.05,118.26]
[1748015546592,118.26,182.13,182.05,118.26]
[1748015546889,118.26,182.13,182.02,104.3]
[1748015547098,0.04162384,182.09,182.06,0.03783824]
[1748015547280,118.26,182.08,182.02,104.3]
[1748015547889,118.26,182.08,181.98,109.41003573]
[1748015548286,0.04223025,182.05,182.01,0.04167677]
[1748015548680,0.04223025,182.05,182.01,5.53407677]
[1748015549188,0.04223025,182.05,182.01,0.04167677]
[1748015549596,0.04223025,182.05,181.92,474.3]
[1748015549789,13.89394453,182.07,181.92,578.62]
[1748015549991,13.89394453,182.07,181.92,104.32]
[1748015550190,1.8953,182.06,181.92,104.32]
[1748015550390,5.4932,182.0,181.94,5.4945]
[1748015550693,0.03845297,181.99,181.95,0.03642269]
[1748015551294,0.03845297,181.99,181.91,118.28]
[1748015552296,0.03845297,181.99,181.93,0.03921182]
[1748015552498,1.93075297,181.99,181.93,0.03921182]
[1748015552797,15.8246975,181.99,181.87,118.32]
[1748015552999,1.8526,181.98,181.84,5.4977]
[1748015553500,1.8526,181.98,181.83,578.76]
[1748015553702,0.041132,181.92,181.89,0.03524386]
[1748015553893,5.4956,181.91,181.89,0.03524386]
[1748015554299,0.041132,181.92,181.89,0.03524386]
[1748015554602,0.041132,181.92,181.82,118.32]
[1748015554800,0.041132,181.92,181.82,123.8182]
[1748015555700,0.041132,181.92,181.85,0.0349153]
[1748015556999,0.041132,181.92,181.87,5.4968]
[1748015557900,5.4957,181.91,181.87,5.4968]
[1748015558300,0.041132,181.92,181.88,5.4965]
[1748015558698,0.041132,181.92,181.85,0.0349153]
[1748015558899,0.041132,181.92,181.91,5.4956]
[1748015559399,5.4939,181.97,181.93,5.4948]
[1748015559794,1.8923,181.99,181.9,104.43577815]
[1748015560407,0.03832619,181.96,181.9,104.43577815]
[1748015561306,120.2976,182.04,181.9,118.47292268]
[1748015561498,120.2976,182.04,181.91,0.3135]